fUST/lending_fUST_20250901
["ID","MTS","AMOUNT","RATE_DAILY","PERIOD"]
[382649610,1756695045168,-480.0,0.00016034,2]
[382649612,1756695045177,-480.0,0.00016034,2]
[382649614,1756695045187,-480.0,0.00016034,2]
[382649616,1756695045196,-509.86,0.00016034,2]
[382649618,1756695045205,-481.38506784,0.00016034,2]
[382649620,1756695045215,-480.0,0.00016034,2]
[382649623,1756695045224,-480.0,0.00016034,2]
[382649625,1756695045234,-482.01937465,0.00016034,2]
[382649627,1756695045245,-955.11,0.00016034,2]
[382649630,1756695045254,-515.19,0.00016034,2]
[382649633,1756695045265,-480.0,0.00016034,2]
[382649635,1756695045274,-480.0,0.00016034,2]
[382649637,1756695045283,-480.0,0.00016034,2]
[382649639,1756695045293,-480.0,0.00016034,2]
[382649641,1756695045302,-480.0,0.00016034,2]
[382649643,1756695045312,-480.0,0.00016034,2]
[382649645,1756695045321,-480.86158101,0.00016034,2]
[382649647,1756695045331,-481.38516802,0.00016034,2]
[382649649,1756695045340,-480.0,0.00016034,2]
[382649651,1756695045349,-480.0,0.00016034,2]
[382649653,1756695045358,-539.48,0.00016034,2]
[382649655,1756695045367,-482.53308073,0.00016034,2]
[382649657,1756695045377,-481.64271792,0.00016034,2]
[382649659,1756695045386,-480.0,0.00016034,2]
[382649661,1756695045396,-481.93176269,0.00016034,2]
[382649663,1756695045405,-634.81,0.00016034,2]
[382649665,1756695045415,-480.0,0.00016034,2]
[382649667,1756695045424,-1304.29,0.00016034,2]
[382649669,1756695045433,-490.4360983,0.00016034,2]
[382649671,1756695045443,-526.89653165,0.00016034,2]
[382649673,1756695045452,-482.83658517,0.00016034,2]
[382649675,1756695045462,-1767.0,0.00016034,2]
[382649677,1756695045471,-1767.0,0.00016034,2]
[382649679,1756695045479,-480.00000001,0.00016034,2]
[382649681,1756695045489,-766.39,0.00016034,2]
[382649683,1756695045500,-480.0,0.00016035,2]
[382649685,1756695045509,-480.0,0.00016035,2]
[382649687,1756695045519,-480.0,0.00016035,2]
[382649689,1756695045528,-480.0,0.00016035,2]
[382649691,1756695045537,-548.83,0.00016035,2]
[382649693,1756695045546,-480.0,0.00016035,2]
[382649695,1756695045555,-480.0,0.00016035,2]
[382649697,1756695045565,-481.56537606,0.00016035,2]
[382649699,1756695045574,-305.2517959,0.00016035,2]
[382649701,1756695045583,-480.0,0.00016035,2]
[382649703,1756695045592,-480.0,0.00016035,2]
[382649705,1756695045602,-631.71,0.00016035,2]
[382649707,1756695045611,-537.45,0.00016035,2]
[382649709,1756695045620,-500.0,0.00016035,2]
[382649711,1756695045629,-151.0,0.00016035,2]
[382649713,1756695045638,-500.0,0.00016035,2]
[382649715,1756695045648,-151.0,0.00016035,2]
[382649717,1756695045657,-245.5866834,0.00016035,2]
[382649718,1756695045666,-480.0,0.00016035,2]
[382649720,1756695045675,-151.0,0.00016035,2]
[382649722,1756695045684,-554.27,0.00016035,2]
[382649724,1756695045693,-500.0,0.00016035,2]
[382649726,1756695045703,-151.86390709,0.00016035,2]
[382649728,1756695045712,-240.45780543,0.00016035,2]
[382649730,1756695045721,-152.20324463,0.00016035,2]
[382649732,1756695045732,-153.55346697,0.00016035,2]
[382649735,1756695045741,-151.0,0.00016035,2]
[382649737,1756695045752,-500.0,0.00016035,2]
[382649739,1756695045762,-151.0,0.00016035,2]
[382649741,1756695045772,-151.75506122,0.00016035,2]
[382649743,1756695045783,-151.0,0.00016035,2]
[382649745,1756695045800,-500.0,0.00016035,2]
[382649747,1756695045810,-242.3268336,0.00016035,2]
[382649749,1756695045819,-1493.0,0.00016035,2]
[382649751,1756695045828,-500.01052787,0.00016035,2]
[382649753,1756695045838,-613.2186366,0.0001606,2]
[382649755,1756695045848,-818.14631578,0.0001607,2]
[382649757,1756695045858,-500.0,0.00016073,2]
[382649759,1756695045869,-500.0,0.00016073,2]
[382649761,1756695045879,-151.0,0.000161,2]
[382649763,1756695045888,-151.0,0.000161,2]
[382649765,1756695045897,-2001.753413,0.000161,2]
[382649767,1756695045907,-272.0,0.00016166,2]
[382649769,1756695045916,-151.0,0.000162,2]
[382649771,1756695045925,-151.0,0.000162,2]
[382649773,1756695045934,-818.14631578,0.00016208,2]
[382649775,1756695045943,-33647.48950947,0.00016232,2]
[382649777,1756695045953,-309.0,0.000163,2]
[382649779,1756695045963,-151.0,0.000163,2]
[382649781,1756695045972,-151.0,0.000163,2]
[382649783,1756695045981,-151.0,0.000163,2]
[382649785,1756695045991,-151.0,0.000163,2]
[382649787,1756695046003,-518.08,0.00016302,2]
[382649789,1756695046012,-480.0,0.00016302,2]
[382649791,1756695046021,-480.0,0.00016302,2]
[382649793,1756695046031,-879.19,0.00016302,2]
[382649795,1756695046040,-1256.84,0.00016302,2]
[382649797,1756695046049,-480.0,0.00016302,2]
[382649799,1756695046058,-480.0,0.00016302,2]
[382649801,1756695046068,-480.0,0.00016303,2]
[382649803,1756695046077,-822.99,0.00016303,2]
[382649805,1756695046086,-480.0,0.00016303,2]
[382649807,1756695046095,-480.0,0.00016303,2]
[382649809,1756695046107,-996.18,0.00016303,2]
[382649811,1756695046117,-480.0,0.00016303,2]
[382649814,1756695046126,-480.0,0.00016303,2]
[382649815,1756695046136,-480.0,0.00016303,2]
[382649817,1756695046145,-481.7,0.00016303,2]
[382649819,1756695046154,-480.0,0.00016303,2]
[382649821,1756695046163,-480.0,0.00016303,2]
[382649823,1756695046173,-715.97,0.00016303,2]
[382649825,1756695046182,-480.0,0.00016303,2]
[382649827,1756695046192,-480.0,0.00016303,2]
[382649829,1756695046201,-480.0,0.00016303,2]
[382649831,1756695046210,-482.48106718,0.00016303,2]
[382649833,1756695046219,-480.0,0.00016303,2]
[382649835,1756695046228,-2148.87,0.00016303,2]
[382649837,1756695046238,-480.0,0.00016303,2]
[382649839,1756695046249,-521.76,0.00016303,2]
[382649841,1756695046259,-480.0,0.00016303,2]
[382649843,1756695046268,-480.0,0.00016303,2]
[382649845,1756695046279,-494.49,0.00016303,2]
[382649847,1756695046289,-544.57,0.00016303,2]
[382649849,1756695046298,-480.0,0.00016303,2]
[382649851,1756695046308,-480.0,0.00016303,2]
[382649853,1756695046317,-591.21,0.00016303,2]
[382649855,1756695046327,-1202.83,0.00016303,2]
[382649857,1756695046336,-1896.66,0.00016303,2]
[382649859,1756695046345,-480.0,0.00016303,2]
[382649861,1756695046354,-471.40083625,0.00016303,2]
[382649863,1756695046363,-490.57,0.00016303,2]
[382649865,1756695046373,-480.0,0.00016303,2]
[382649867,1756695046382,-1829.13,0.00016303,2]
[382649869,1756695046391,-615.88,0.00016303,2]
[382649871,1756695046402,-480.0,0.00016303,2]
[382649873,1756695046411,-480.0,0.00016303,2]
[382649875,1756695046421,-480.0,0.00016303,2]
[382649877,1756695046431,-480.0,0.00016303,2]
[382649879,1756695046440,-520.15,0.00016303,2]
[382649881,1756695046449,-480.0,0.00016304,2]
[382649883,1756695046458,-480.0,0.00016304,2]
[382649885,1756695046468,-480.0,0.00016304,2]
[382649887,1756695046477,-1209.57,0.00016304,2]
[382649889,1756695046487,-480.0,0.00016304,2]
[382649891,1756695046497,-484.92,0.00016304,2]
[382649893,1756695046506,-1065.67,0.00016304,2]
[382649895,1756695046515,-691.79,0.00016304,2]
[382649897,1756695046525,-480.0,0.00016304,2]
[382649899,1756695046534,-480.0,0.00016304,2]
[382649901,1756695046543,-480.0,0.00016304,2]
[382649903,1756695046552,-480.0,0.00016304,2]
[382649905,1756695046561,-503.08,0.00016304,2]
[382649907,1756695046571,-665.25,0.00016304,2]
[382649909,1756695046580,-480.0,0.00016304,2]
[382649911,1756695046589,-480.0,0.00016304,2]
[382649913,1756695046598,-795.16,0.00016304,2]
[382649915,1756695046608,-921.36,0.00016304,2]
[382649917,1756695046617,-824.77,0.00016304,2]
[382649919,1756695046627,-523.31,0.00016304,2]
[382649921,1756695046636,-758.68,0.00016304,2]
[382649923,1756695046645,-587.64,0.00016304,2]
[382649925,1756695046654,-988.65,0.00016304,2]
[382649927,1756695046663,-480.0,0.00016304,2]
[382649929,1756695046673,-480.0,0.00016304,2]
[382649931,1756695046683,-480.0,0.00016304,2]
[382649932,1756695046692,-609.32,0.00016304,2]
[382649934,1756695046702,-773.07,0.00016304,2]
[382649936,1756695046712,-480.0,0.00016304,2]
[382649939,1756695046722,-480.0,0.00016304,2]
[382649941,1756695046731,-480.0,0.00016304,2]
[382649943,1756695046741,-653.79,0.00016304,2]
[382649945,1756695046753,-910.8,0.00016304,2]
[382649946,1756695046762,-480.0,0.00016304,2]
[382649948,1756695046771,-752.76,0.00016304,2]
[382649950,1756695046781,-674.2,0.00016304,2]
[382649952,1756695046794,-757.06,0.00016304,2]
[382649954,1756695046803,-480.0,0.00016304,2]
[382649956,1756695046812,-480.0,0.00016304,2]
[382649958,1756695046822,-480.0,0.00016304,2]
[382649960,1756695046831,-480.0,0.00016304,2]
[382649962,1756695046840,-480.0,0.00016304,2]
[382649964,1756695046850,-853.17,0.00016304,2]
[382649966,1756695046861,-771.16,0.00016304,2]
[382649968,1756695046875,-1031.8,0.00016304,2]
[382649970,1756695046885,-480.0,0.00016304,2]
[382649972,1756695046894,-480.0,0.00016304,2]
[382649974,1756695046904,-683.56,0.00016304,2]
[382649976,1756695046914,-480.0,0.00016304,2]
[382649978,1756695046924,-607.76,0.00016305,2]
[382649980,1756695046933,-3396.76,0.00016305,2]
[382649982,1756695046942,-4871.07,0.00016305,2]
[382649984,1756695046951,-1359.0,0.00016305,2]
[382649986,1756695046960,-1130.82,0.00016305,2]
[382649988,1756695046970,-480.0,0.00016305,2]
[382649990,1756695046979,-790.56,0.00016305,2]
[382649992,1756695046989,-629.56,0.00016305,2]
[382649994,1756695046998,-4734.37,0.00016305,2]
[382649996,1756695047007,-4645.01,0.00016305,2]
[382649998,1756695047016,-1159.54,0.00016305,2]
[382650000,1756695047026,-1904.17,0.00016305,2]
[382650002,1756695047036,-567.47,0.00016305,2]
[382650004,1756695047046,-537.34,0.00016305,2]
[382650006,1756695047055,-1144.43,0.00016305,2]
[382650008,1756695047065,-1338.86,0.00016305,2]
[382650010,1756695047074,-480.0,0.00016305,2]
[382650012,1756695047083,-151.0,0.00016305,2]
[382650014,1756695047092,-1901.29,0.00016305,2]
[382650016,1756695047102,-151.0,0.00016305,2]
[382650018,1756695047112,-3068.97,0.00016305,2]
[382650034,1756695047122,-480.0,0.00016306,2]
[382650037,1756695047278,-480.0,0.00016306,2]
[382650039,1756695047288,-365.96116254,0.00016306,2]
[382650041,1756695047298,-634.77,0.00016306,2]
[382650043,1756695047308,-405.44511087,0.00016306,2]
[382650045,1756695047317,-192.36864164,0.00016306,2]
[382650047,1756695047327,-480.0,0.00016306,2]
[382650049,1756695047337,-480.0,0.00016306,2]
[382650052,1756695047346,-480.0,0.00016306,2]
[382650054,1756695047356,-480.0,0.00016306,2]
[382650056,1756695047365,-480.0,0.00016306,2]
[382650058,1756695047374,-491.55237605,0.00016306,2]
[382650059,1756695047384,-480.0,0.00016306,2]
[382650061,1756695047394,-480.0,0.00016306,2]
[382650063,1756695047403,-480.0,0.00016306,2]
[382650065,1756695047412,-847.34,0.00016306,2]
[382650067,1756695047422,-515.91,0.00016306,2]
[382650069,1756695047432,-480.0,0.00016306,2]
[382650071,1756695047441,-763.43,0.00016306,2]
[382650073,1756695047452,-480.0,0.00016306,2]
[382650075,1756695047461,-525.86,0.00016306,2]
[382650077,1756695047470,-480.0,0.00016306,2]
[382650079,1756695047480,-480.0,0.00016306,2]
[382650081,1756695047490,-480.0,0.00016306,2]
[382650083,1756695047501,-1069.68,0.00016306,2]
[382650085,1756695047510,-480.0,0.00016306,2]
[382650087,1756695047519,-612.95439671,0.00016306,2]
[382650089,1756695047529,-480.0,0.00016306,2]
[382650091,1756695047538,-480.0,0.00016306,2]
[382650093,1756695047547,-480.0,0.00016306,2]
[382650094,1756695047557,-1038.56,0.00016306,2]
[382650095,1756695047566,-480.0,0.00016306,2]
[382650096,1756695047575,-480.0,0.00016306,2]
[382650097,1756695047585,-480.0,0.00016306,2]
[382650098,1756695047594,-937.95,0.00016306,2]
[382650099,1756695047603,-731.64,0.00016306,2]
[382650100,1756695047613,-480.0,0.00016306,2]
[382650101,1756695047624,-480.0,0.00016306,2]
[382650102,1756695047633,-1003.1,0.00016306,2]
[382650103,1756695047642,-480.0,0.00016306,2]
[382650104,1756695047652,-480.0,0.00016306,2]
[382650105,1756695047662,-929.76,0.00016306,2]
[382650107,1756695047672,-480.0,0.00016306,2]
[382650109,1756695047681,-480.0,0.00016306,2]
[382650111,1756695047691,-480.0,0.00016306,2]
[382650113,1756695047701,-480.0,0.00016306,2]
[382650115,1756695047710,-480.0,0.00016306,2]
[382650117,1756695047720,-480.0,0.00016306,2]
[382650119,1756695047729,-918.54,0.00016306,2]
[382650121,1756695047738,-480.0,0.00016306,2]
[382650123,1756695047748,-480.0,0.00016306,2]
[382650125,1756695047759,-758.34,0.00016306,2]
[382650127,1756695047768,-480.0,0.00016306,2]
[382650129,1756695047778,-480.0,0.00016306,2]
[382650131,1756695047788,-480.0,0.00016306,2]
[382650133,1756695047801,-480.0,0.00016306,2]
[382650135,1756695047810,-480.0,0.00016306,2]
[382650137,1756695047822,-480.0,0.00016306,2]
[382650139,1756695047831,-480.0,0.00016306,2]
[382650141,1756695047843,-480.0,0.00016306,2]
[382650143,1756695047852,-487.0,0.00016306,2]
[382650145,1756695047862,-480.0,0.00016306,2]
[382650147,1756695047873,-480.0,0.00016306,2]
[382650150,1756695047884,-480.0,0.00016306,2]
[382650152,1756695047893,-480.0,0.00016306,2]
[382650154,1756695047903,-151.0,0.00016306,2]
[382650156,1756695047912,-480.0,0.00016306,2]
[382650158,1756695047922,-480.0,0.00016306,2]
[382650160,1756695047933,-580.15751368,0.00016306,2]
[382650162,1756695047943,-904.84,0.00016306,2]
[382650164,1756695047952,-480.0,0.00016306,2]
[382650165,1756695047962,-480.0,0.00016306,2]
[382650168,1756695047972,-919.82,0.00016306,2]
[382650170,1756695047982,-480.0,0.00016306,2]
[382650172,1756695047991,-480.0,0.00016306,2]
[382650174,1756695048003,-411.61085373,0.00016306,2]
[382650176,1756695048014,-559.37,0.00016306,2]
[382650178,1756695048023,-480.0,0.00016306,2]
[382650180,1756695048033,-480.0,0.00016306,2]
[382650182,1756695048043,-782.42,0.00016306,2]
[382650184,1756695048055,-347.7394083,0.00016306,2]
[382650186,1756695048065,-480.0,0.00016306,2]
[382650188,1756695048074,-480.0,0.00016306,2]
[382650190,1756695048084,-1041.72,0.00016306,2]
[382650192,1756695048093,-157.4141734,0.00016306,2]
[382650193,1756695048102,-976.25,0.00016306,2]
[382650196,1756695048115,-480.0,0.00016306,2]
[382650198,1756695048125,-1108.35,0.00016306,2]
[382650200,1756695048135,-480.0,0.00016306,2]
[382650201,1756695048145,-877.71,0.00016306,2]
[382650203,1756695048155,-481.91405631,0.00016306,2]
[382650205,1756695048165,-480.0,0.00016306,2]
[382650207,1756695048174,-1179.63,0.00016306,2]
[382650209,1756695048184,-684.08,0.00016306,2]
[382650211,1756695048193,-538.91,0.00016306,2]
[382650213,1756695048203,-480.0,0.00016306,2]
[382650215,1756695048218,-481.54031166,0.00016306,2]
[382650217,1756695048228,-502.01,0.00016306,2]
[382650219,1756695048238,-480.0,0.00016306,2]
[382650221,1756695048249,-480.0,0.00016306,2]
[382650223,1756695048259,-546.27,0.00016306,2]
[382650225,1756695048270,-1000.0,0.00016306,2]
[382650228,1756695048280,-480.0,0.00016306,2]
[382650230,1756695048292,-480.0,0.00016306,2]
[382650232,1756695048302,-480.0,0.00016306,2]
[382650234,1756695048311,-480.0,0.00016306,2]
[382650236,1756695048322,-480.0,0.00016306,2]
[382650238,1756695048332,-646.11,0.00016306,2]
[382650240,1756695048342,-480.0,0.00016306,2]
[382650242,1756695048352,-480.0,0.00016306,2]
[382650244,1756695048362,-480.0,0.00016306,2]
[382650246,1756695048372,-480.0,0.00016306,2]
[382650248,1756695048383,-1721.91,0.00016306,2]
[382650250,1756695048394,-480.0,0.00016306,2]
[382650252,1756695048404,-1044.46,0.00016306,2]
[382650254,1756695048415,-480.0,0.00016306,2]
[382650256,1756695048426,-480.0,0.00016306,2]
[382650258,1756695048437,-504.33,0.00016306,2]
[382650260,1756695048448,-480.0,0.00016306,2]
[382650262,1756695048459,-500.07,0.00016306,2]
[382650264,1756695048470,-480.0,0.00016306,2]
[382650266,1756695048482,-480.0,0.00016306,2]
[382650268,1756695048493,-200.93802996,0.00016306,2]
[382650270,1756695048506,-480.0,0.00016306,2]
[382650272,1756695048518,-480.0,0.00016306,2]
[382650274,1756695048529,-270.98948673,0.00016306,2]
[382650276,1756695048541,-200.75158927,0.00016306,2]
[382650278,1756695048551,-480.0,0.00016306,2]
[382650280,1756695048561,-480.0,0.00016306,2]
[382650282,1756695048571,-594.65,0.00016306,2]
[382650284,1756695048580,-480.0,0.00016306,2]
[382650286,1756695048590,-480.0,0.00016306,2]
[382650288,1756695048600,-480.0,0.00016306,2]
[382650290,1756695048609,-368.00354687,0.00016307,2]
[382650292,1756695048618,-1175.91,0.00016307,2]
[382650294,1756695048627,-639.97,0.00016307,2]
[382650296,1756695048636,-3028.984135,0.00016307,2]
[382650298,1756695048645,-548.31,0.00016307,2]
[382650300,1756695048654,-480.0,0.00016307,2]
[382650302,1756695048664,-821.63,0.00016307,2]
[382650304,1756695048674,-151.0,0.00016307,2]
[382650306,1756695048684,-151.467687,0.00016307,2]
[382650308,1756695048693,-1077.37,0.00016307,2]
[382650310,1756695048703,-501.32,0.00016307,2]
[382650312,1756695048712,-614.81,0.00016307,2]
[382650313,1756695048722,-480.0,0.00016307,2]
[382650315,1756695048732,-480.0,0.00016307,2]
[382650317,1756695048741,-480.0,0.00016307,2]
[382650319,1756695048756,-480.0,0.00016307,2]
[382650321,1756695048766,-670.86,0.00016307,2]
[382650323,1756695048777,-480.0,0.00016307,2]
[382650325,1756695048787,-480.0,0.00016307,2]
[382650327,1756695048801,-480.0,0.00016307,2]
[382650329,1756695048810,-916.7,0.00016307,2]
[382650331,1756695048820,-612.4,0.00016307,2]
[382650333,1756695048831,-480.0,0.00016307,2]
[382650335,1756695048840,-480.0,0.00016307,2]
[382650337,1756695048850,-480.0,0.00016307,2]
[382650340,1756695048871,-879.82,0.00016307,2]
[382650343,1756695048880,-480.0,0.00016307,2]
[382650345,1756695048890,-593.38,0.00016307,2]
[382650347,1756695048899,-281.95276499,0.00016307,2]
[382650349,1756695048909,-480.0,0.00016307,2]
[382650351,1756695048918,-886.04,0.00016307,2]
[382650353,1756695048927,-480.0,0.00016307,2]
[382650355,1756695048937,-1578.52,0.00016307,2]
[382650357,1756695048946,-480.0,0.00016307,2]
[382650358,1756695048956,-480.0,0.00016307,2]
[382650360,1756695048966,-480.0,0.00016307,2]
[382650363,1756695048977,-480.0,0.00016307,2]
[382650365,1756695048986,-480.0,0.00016307,2]
[382650366,1756695048997,-571.69,0.00016307,2]
[382650369,1756695049007,-480.0,0.00016307,2]
[382650371,1756695049018,-650.99,0.00016307,2]
[382650373,1756695049027,-480.0,0.00016307,2]
[382650375,1756695049037,-480.0,0.00016307,2]
[382650377,1756695049046,-480.0,0.00016307,2]
[382650379,1756695049055,-761.37,0.00016307,2]
[382650381,1756695049064,-759.74,0.00016307,2]
[382650383,1756695049073,-1074.42,0.00016308,2]
[382650385,1756695049083,-480.0,0.00016308,2]
[382650387,1756695049092,-480.0,0.00016308,2]
[382650389,1756695049101,-480.0,0.00016308,2]
[382650391,1756695049112,-480.0,0.00016308,2]
[382650393,1756695049121,-480.0,0.00016308,2]
[382650395,1756695049132,-480.0,0.00016308,2]
[382650397,1756695049141,-503.32,0.00016308,2]
[382650399,1756695049151,-480.0,0.00016308,2]
[382650401,1756695049161,-1013.53,0.00016308,2]
[382650403,1756695049171,-480.0,0.00016308,2]
[382650405,1756695049180,-480.0,0.00016308,2]
[382650407,1756695049189,-475.17893973,0.00016308,2]
[382650409,1756695049198,-1025.94,0.00016308,2]
[382650411,1756695049208,-993.87,0.00016308,2]
[382650413,1756695049218,-480.0,0.00016308,2]
[382650415,1756695049228,-480.0,0.00016308,2]
[382650417,1756695049238,-480.0,0.00016308,2]
[382650419,1756695049250,-480.0,0.00016308,2]
[382650421,1756695049260,-480.0,0.00016308,2]
[382650423,1756695049271,-555.02,0.00016308,2]
[382650425,1756695049281,-480.0,0.00016308,2]
[382650427,1756695049294,-480.0,0.00016308,2]
[382650429,1756695049304,-480.0,0.00016308,2]
[382650431,1756695049314,-480.0,0.00016308,2]
[382650433,1756695049323,-480.0,0.00016308,2]
[382650435,1756695049333,-480.0,0.00016308,2]
[382650437,1756695049343,-597.03,0.00016308,2]
[382650439,1756695049353,-480.0,0.00016308,2]
[382650441,1756695049363,-591.96021485,0.00016308,2]
[382650443,1756695049373,-516.29,0.00016308,2]
[382650445,1756695049383,-480.0,0.00016308,2]
[382650447,1756695049392,-480.0,0.00016308,2]
[382650449,1756695049402,-480.0,0.00016308,2]
[382650451,1756695049411,-480.0,0.00016308,2]
[382650453,1756695049420,-480.0,0.00016308,2]
[382650455,1756695049430,-480.0,0.00016308,2]
[382650457,1756695049439,-418.73002565,0.00016308,2]
[382650459,1756695049449,-482.26617379,0.00016308,2]
[382650461,1756695049459,-480.0,0.00016308,2]
[382650463,1756695049468,-480.0,0.00016308,2]
[382650465,1756695049477,-647.84,0.00016308,2]
[382650467,1756695049487,-157.92674,0.00016308,2]
[382650469,1756695049498,-157.92674,0.00016308,2]
[382650471,1756695049507,-157.92674,0.00016308,2]
[382650473,1756695049516,-480.0,0.00016308,2]
[382650475,1756695049526,-481.97117126,0.00016308,2]
[382650477,1756695049539,-157.92674,0.00016308,2]
[382650479,1756695049549,-480.0,0.00016308,2]
[382650481,1756695049559,-480.0,0.00016308,2]
[382650483,1756695049568,-519.82,0.00016308,2]
[382650485,1756695049578,-480.0,0.00016308,2]
[382650487,1756695049587,-480.0,0.00016308,2]
[382650489,1756695049599,-151.0,0.00016308,2]
[382650491,1756695049609,-480.0,0.00016308,2]
[382650493,1756695049619,-480.0,0.00016308,2]
[382650496,1756695049629,-480.0,0.00016308,2]
[382650497,1756695049639,-151.0,0.00016308,2]
[382650500,1756695049650,-480.0,0.00016308,2]
[382650502,1756695049660,-151.0,0.00016308,2]
[382650504,1756695049669,-151.0,0.00016308,2]
[382650506,1756695049679,-774.43,0.00016308,2]
[382650508,1756695049691,-882.46,0.00016308,2]
[382650510,1756695049701,-480.0,0.00016308,2]
[382650512,1756695049712,-480.0,0.00016308,2]
[382650514,1756695049721,-1016.29,0.00016308,2]
[382650516,1756695049731,-480.0,0.00016308,2]
[382650518,1756695049741,-480.0,0.00016308,2]
[382650520,1756695049754,-480.0,0.00016308,2]
[382650526,1756695049808,-151.0,0.00016308,2]
[382650528,1756695049818,-480.0,0.00016308,2]
[382650530,1756695049828,-480.0,0.00016308,2]
[382650532,1756695049839,-480.0,0.00016308,2]
[382650534,1756695049848,-318.72120526,0.00016308,2]
[382650537,1756695049858,-480.0,0.00016308,2]
[382650539,1756695049870,-480.0,0.00016308,2]
[382650541,1756695049879,-480.0,0.00016308,2]
[382650543,1756695049889,-1003.5,0.00016308,2]
[382650545,1756695049898,-480.0,0.00016308,2]
[382650547,1756695049908,-480.0,0.00016308,2]
[382650549,1756695049917,-559.76,0.00016308,2]
[382650551,1756695049927,-473.0,0.00016308,2]
[382650553,1756695049936,-480.0,0.00016308,2]
[382650555,1756695049945,-480.0,0.00016308,2]
[382650557,1756695049954,-694.64,0.00016308,2]
[382650559,1756695049963,-480.0,0.00016308,2]
[382650561,1756695049973,-317.93001458,0.00016308,2]
[382650563,1756695049982,-480.0,0.00016308,2]
[382650565,1756695049993,-509.86,0.00016308,2]
[382650567,1756695050003,-480.0,0.00016308,2]
[382650569,1756695050012,-480.0,0.00016308,2]
[382650571,1756695050022,-955.11,0.00016308,2]
[382650573,1756695050031,-515.19,0.00016308,2]
[382650575,1756695050041,-480.0,0.00016308,2]
[382650577,1756695050050,-480.0,0.00016308,2]
[382650579,1756695050059,-480.0,0.00016308,2]
[382650581,1756695050069,-480.0,0.00016308,2]
[382650583,1756695050078,-204.20790713,0.00016308,2]
[382650585,1756695050087,-480.0,0.00016308,2]
[382650587,1756695050097,-480.0,0.00016308,2]
[382650589,1756695050107,-480.0,0.00016308,2]
[382650591,1756695050115,-539.48,0.00016308,2]
[382650592,1756695050125,-480.0,0.00016308,2]
[382650595,1756695050136,-634.81,0.00016308,2]
[382650597,1756695050145,-480.0,0.00016308,2]
[382650599,1756695050154,-1304.29,0.00016308,2]
[382650600,1756695050164,-151.0,0.00016308,2]
[382650602,1756695050174,-766.39,0.00016308,2]
[382650605,1756695050185,-152.11578,0.00016308,2]
[382650606,1756695050195,-500.0,0.00016309,2]
[382650608,1756695050204,-277.2116924,0.00016309,2]
[382650610,1756695050213,-500.0,0.00016309,2]
[382650613,1756695050230,-151.0,0.00016309,2]
[382650616,1756695050247,-151.0,0.00016309,2]
[382650618,1756695050257,-500.0,0.00016309,2]
[382650620,1756695050267,-151.0,0.00016309,2]
[382650622,1756695050277,-500.0,0.00016309,2]